[Event "Bangabandhu Premier Div League 2023-24"]
[Site "Dhaka"]
[Date "2024.02.10"]
[Round "10.10"]
[White "Alekhya Mukhopadhyay"]
[Black "Ter-Sahakyan, Samvel"]
[Result "0-1"]
[ECO "C88"]
[WhiteElo "2184"]
[BlackElo "2649"]
[Annotator "TA"]
[PlyCount "90"]
[EventDate "2024.02.01"]
[EventCountry "BAN"]
[SourceTitle "playchess.com"]
[Source "ChessBase"]
[SourceQuality "1"]
[TimeControl "40/5400+30:1800+30"]

{[%evp 20,90,17,23,7,19,31,20,45,47,56,1,22,-5,6,0,0,0,0,0,0,-17,-8,-24,-30,-29,0,-35,-27,-18,-20,-44,-51,-43,-60,-56,-52,-104,-79,-79,-78,-80,-80,-292,-294,-280,-266,-359,-336,-546,-532,-499,-379,-833,-408,-833,-752,-925,-926,-795,-760,-29978,-29979,-29971,-29969,-29981,-29982,-29982,-29983,-29983,-29984,-29984,-29985]} 1. e4 e5 {[%emt 0:00:16]} 2. Nf3 {[%emt 0:00:17]} Nc6 {[%emt 0:00:07]} 3. Bb5 {[%emt 0:00:16][%cal Bf1b5,Bb5a4,Ba4b3,Bb3a2,Ba2d5][%mdl 32]} a6 {[%emt 0:01:02]} 4. Ba4 {[%emt 0:00:12]} Nf6 {[%emt 0:00:27]} 5. O-O {[%emt 0:00:18]} Be7 {[%emt 0:00:47]} 6. Re1 {[%emt 0:00:15]} b5 {[%emt 0:00:19]} 7. Bb3 {[%emt 0:00:07]} O-O {[%emt 0:00:28]} 8. a4 {[%emt 0:01:13]} Bb7 {[%emt 0:00:41]} 9. Nc3 {[%emt 0:04:21]} b4 {[%emt 0:16:32]} 10. Nd5 {[%emt 0:02:42]} Na5 {[%emt 0:00:07]} 11. Ba2 {[%emt 0:07:36]} Nxd5 {[%emt 0:03:17]} 12. Bxd5 {[%emt 0:02:53]} c6 {[%emt 0:02:22]} 13. Ba2 {[%emt 0:00:14]} d6 {[%emt 0:00:15] The position is equal.} 14. c3 {[%emt 0:07:45]} c5 {[%emt 1:10:50]} 15. d3 {[%emt 0:11:11]} (15. cxb4 $1 $14 cxb4 16. d4) 15... Rb8 {[%emt 0:00:00]} 16. Nd2 {[%emt 0:06:28]} Ba8 {[%emt 0:00:00]} 17. Nc4 {[%emt 0:02:48]} b3 {[%emt 0:00:00]} 18. Nxa5 {[%emt 0:07:44]} bxa2 {[%emt 0:00:00]} 19. Nc4 {[%emt 0:43:40]} d5 {[%emt 0:02:30]} 20. Nd2 {[%emt 0:00:30]} f5 {[%emt 0:00:00]} 21. Rxa2 {[%emt 0:00:30]} fxe4 {[%emt 0:00:00]} 22. dxe4 {[%emt 0:00:00]} dxe4 {[%emt 0:00:00][%cal Oe4e3] aiming for ...e3!} (22... Bh4 $5 23. g3 dxe4 $11) 23. Qe2 {[%emt 0:00:00]} e3 {[%emt 0:00:00]} 24. fxe3 {[%emt 0:00:00][%cal Oe3e4]} Bh4 {[%emt 0:00:00]} 25. Rf1 {[%emt 0:00:00] Wards off Rf2} Rxf1+ {[%emt 0:00:00]} (25... Qd5 {seems wilder.} 26. b3 Rxf1+ 27. Nxf1 Rf8) 26. Nxf1 {[%emt 0:00:00]} Qd5 {[%emt 0:00:00] Repels b3. White is weak on the light squares} 27. Ra1 {[%emt 0:00:00][%cal Of1d2]} c4 {[%emt 0:00:00]} 28. Nd2 {[%emt 0:00:00]} (28. e4 $15 Qxe4 29. Be3) 28... Rf8 $17 {[%emt 0:04:30] Black is much more active.} 29. Nf3 {[%emt 0:00:00] [#]} Bf2+ {[%emt 0:00:00]} 30. Qxf2 {[%emt 0:00:00] [#] Threatens to win with Qe2.} (30. Kxf2 $2 {too greedy.} e4 31. Ke1 (31. Qd2 $2 Qh5 $19) 31... exf3 32. gxf3 Rxf3 $19) 30... e4 $1 $40 {[%emt 0:00:00][%mdl 128] Black goes for the king.} 31. Nd4 {[%emt 0:01:28] This costs White the game.} Rxf2 $19 {[%emt 0:00:00]} 32. Kxf2 {[%emt 0:00:02]} Qh5 {[%emt 0:00:00]} 33. Bd2 {[%emt 0:03:11]} Qxh2 {[%emt 0:00:00]} 34. a5 $2 {[%emt 0:00:42]} (34. b4 {might work better.}) 34... h5 {[%emt 0:00:00]} 35. Rg1 {[%emt 0:01:02]} h4 {[%emt 0:00:00]} ({Weaker is} 35... Qh4+ 36. g3 Qg5 37. b4 $19) 36. Ne2 $2 {[%emt 0:00:31]} (36. Kf1) 36... g5 {[%emt 0:00:00]} (36... Bc6 $142 37. Kf1 Bd7) 37. Be1 {[%emt 0:00:28]} (37. Kf1 $142) 37... Bc6 {[%emt 0:00:00]} 38. Kf1 {[%emt 0:00:33]} Bd7 {[%emt 0:00:00]} 39. Bf2 {[%emt 0:00:27]} Qb8 {[%emt 0:00:00]} 40. g3 {[%emt 0:00:32]} h3 {[%emt 0:00:00] Black mates.} 41. g4 {[%emt 0:30:28]} Qxb2 {[%emt 0:28:45]} 42. Be1 {[%emt 0:00:29]} Ba4 {[%emt 0:00:38]} 43. Rh1 {[%emt 0:00:22]} Bd1 {[%emt 0:00:15]} 44. Rh2 {[%emt 0:00:06]} Bxe2+ {[%emt 0:00:05]} 45. Rxe2 {[%emt 0:00:04] [#]} Qxe2+ $3 {[%emt 0:00:35][%mdl 512] Weighted Error Value: White=0.78/Black=0.24 (precise) .  Loses game:     	White=1     	---        Mistake:       	White=5     	Black=1      Inaccurate:     	White=3     	Black=1      OK:         	White=5     	Black=11     Best:        	White=2     	Black=2      Strong:       	---       	Black=1      Brilliant:      	---       	Black=1} 0-1

[Event "Bangabandhu Premier Div League 2023-24"]
[Site "Dhaka"]
[Date "2024.02.10"]
[Round "10.11"]
[White "Rahman, Ziaur"]
[Black "Ankit Ray"]
[Result "1/2-1/2"]
[ECO "D02"]
[WhiteElo "2428"]
[BlackElo "1912"]
[Annotator "TA"]
[PlyCount "86"]
[EventDate "2024.02.01"]
[EventCountry "BAN"]
[SourceTitle "playchess.com"]
[Source "ChessBase"]
[SourceQuality "1"]
[TimeControl "40/5400+30:1800+30"]

{[%evp 10,86,24,39,34,37,37,24,27,37,28,28,41,38,22,0,12,13,9,3,12,0,5,0,0,0,0,0,12,2,18,0,37,37,39,33,44,29,49,52,34,6,19,2,2,0,0,0,0,0,18,14,0,0,0,5,7,0,0,0,0,0,0,0,0,0,0,0,0,0,0,0,0,0,0,0,0,-576,-570]} 1. Nf3 {[%emt 0:00:03]} d5 {[%emt 0:00:30]} 2. g3 {[%emt 0:00:33]} Nf6 {[%emt 0:00:06]} 3. Bg2 {[%emt 0:00:04]} e6 {[%emt 0:00:25]} 4. O-O {[%emt 0:00:21]} Bd6 {[%emt 0:01:39]} 5. c4 {[%emt 0:01:14]} O-O {[%emt 0:00:23]} 6. d4 {[%emt 0:01:17]} h6 {[%emt 0:00:11]} 7. b3 {[%emt 0:01:20]} b6 {[%emt 0:00:08]} 8. Bb2 {[%emt 0:01:29]} Bb7 {[%emt 0:00:45] White has an edge.} 9. Nc3 {[%emt 0:01:08]} Nbd7 {[%emt 0:03:31]} 10. Nd2 {[%emt 0:03:51]} Bb4 {[%emt 0:03:17]} 11. a3 {[%emt 0:05:10]} Be7 {[%emt 1:25:05]} 12. e4 {[%emt 0:05:19]} dxe4 {[%emt 0:00:00]} 13. Ndxe4 {[%emt 0:00:48]} Nxe4 {[%emt 0:00:00]} 14. Nxe4 {[%emt 0:00:12][%cal Oe4f6]} Rb8 {[%emt 0:00:00]} 15. b4 {[%emt 0:05:11]} Nf6 {[%emt 0:00:00]} 16. Nxf6+ {[%emt 0:00:53]} Bxf6 {[%emt 0:00:00]} 17. Bxb7 {[%emt 0:09:30]} Rxb7 {[%emt 0:00:00]} 18. Qf3 {[%emt 0:02:43]} Rb8 {[%emt 0:00:00]} 19. Rfd1 {[%emt 0:01:43]} b5 {[%emt 0:04:00]} 20. Rac1 {[%emt 0:03:58]} bxc4 {[%emt 0:00:00]} 21. Rxc4 {[%emt 0:03:51]} a5 {[%emt 0:00:00]} 22. Bc3 {[%emt 0:01:04]} axb4 {[%emt 0:00:00]} 23. Bxb4 {[%emt 0:01:04]} Be7 {[%emt 0:00:00]} 24. Bxe7 {[%emt 0:02:59]} Qxe7 {[%emt 0:00:00]} 25. Rdc1 {[%emt 0:00:38]} Ra8 {[%emt 0:00:00]} 26. R1c3 {[%emt 0:01:07]} Ra7 {[%emt 0:00:00]} 27. Kg2 {[%emt 0:05:51]} Rd8 {[%emt 0:00:00]} 28. Qf4 {[%emt 0:04:27][%cal Rc4c7]} Qd6 {[%emt 0:00:00]} 29. Qf3 {[%emt 0:01:55]} Qd5 {[%emt 0:00:00]} 30. Rxc7 {[%emt 0:03:22]} Qxf3+ {[%emt 0:00:00]} 31. Kxf3 {[%emt 0:00:04]} Rxc7 {[%emt 0:00:00]} 32. Rxc7 {[%emt 0:00:07]} Rxd4 $11 {[%emt 0:00:00][%mdl 4096] Endgame. KR-KR} 33. Ke3 {[%emt 0:00:36] Inhibits Rd3+.} e5 {[%emt 0:00:00]} 34. Rc8+ {[%emt 0:01:13]} Kh7 {[%emt 0:00:00]} 35. Rc2 {[%emt 0:00:16]} Kg6 {[%emt 0:00:00]} 36. Ra2 {[%emt 0:00:23] And now a4 would win.} Ra4 {[%emt 0:00:00]} 37. Kd3 {[%emt 0:00:21]} Kf5 {[%emt 0:00:00]} 38. Kc3 {[%emt 0:01:09]} Ke4 {[%emt 0:00:00]} 39. Kb3 {[%emt 0:00:16]} Ra8 {[%emt 0:00:00]} 40. Kc4 {[%emt 0:01:24]} Kf3 {[%emt 0:00:00]} 41. a4 {[%emt 0:31:12]} f5 {[%emt 0:05:41]} 42. a5 {[%emt 0:00:33] Kd5 would now be deadly.} g5 {[%emt 0:00:43]} 43. Kd5 $2 {[%emt 0:01:14][%mdl 8192] [#]} (43. a6 $11) 43... e4 {[%emt 0:25:52][%mdl 32768] Weighted Error Value: White=0.20 (precise) /Black=0.03 (flawless) .  Loses game:     	White=1     	---        Inaccurate:     	White=1     	Black=1      OK:         	White=17    	Black=19     Best:        	---       	Black=3     . An unexpected result.} 1/2-1/2

[Event "Bangabandhu Premier Div League 2023-24"]
[Site "Dhaka"]
[Date "2024.02.10"]
[Round "10.12"]
[White "Tashriq Saihan, Shan"]
[Black "Sakline Mostafa, Sajid"]
[Result "0-1"]
[ECO "B33"]
[WhiteElo "1772"]
[BlackElo "2110"]
[Annotator "NA RC"]
[PlyCount "160"]
[EventDate "2024.02.01"]
[EventCountry "BAN"]
[SourceTitle "playchess.com"]
[Source "ChessBase"]
[SourceQuality "1"]
[TimeControl "40/5400+30:1800+30"]

1. e4 c5 {[%emt 0:00:21]} 2. Nf3 {[%emt 0:00:39]} e6 {[%emt 0:00:06]} 3. d4 {[%emt 0:00:07]} cxd4 {[%emt 0:00:01]} 4. Nxd4 {[%emt 0:00:21]} Nf6 {[%emt 0:00:04]} 5. Nc3 {[%emt 0:00:11]} Nc6 {[%emt 0:00:02]} 6. Ndb5 {[%emt 0:00:40]} d6 {[%emt 0:00:06]} 7. Bf4 {[%emt 0:00:19]} e5 {[%emt 0:00:04]} 8. Bg5 {[%emt 0:00:12]} a6 {[%emt 0:00:09]} 9. Na3 {[%emt 0:00:26]} b5 {[%emt 0:00:07]} 10. Nab1 {[%emt 1:32:35]} Be7 {[%emt 0:06:46]} 11. Bxf6 {[%emt 0:00:00]} Bxf6 {[%emt 0:01:37]} 12. a4 {[%emt 0:00:00]} b4 {[%emt 0:07:22]} 13. Nd5 {[%emt 0:01:30]} Bg5 {[%emt 1:20:15]} 14. Bc4 {[%emt 0:00:00]} O-O {[%emt 0:00:00]} 15. c3 {[%emt 0:00:00]} bxc3 {[%emt 0:00:00]} 16. Nbxc3 {[%emt 0:00:00]} Rb8 {[%emt 0:00:00]} 17. b3 {[%emt 0:00:00]} Kh8 {[%emt 0:00:00]} 18. O-O {[%emt 0:00:00]} g6 {[%emt 0:00:00]} 19. Qd3 {[%emt 0:00:00]} a5 {[%emt 0:00:00]} 20. Rad1 {[%emt 0:00:00]} Nd4 {[%emt 0:00:00]} 21. Nb5 {[%emt 0:04:00]} Nxb5 {[%emt 0:00:00]} 22. Bxb5 {[%emt 0:00:00]} Bg4 {[%emt 0:00:00]} 23. f3 {[%emt 0:00:00]} Be6 {[%emt 0:00:00]} 24. Bc4 {[%emt 0:00:00]} Qc8 {[%emt 0:00:00]} 25. Kh1 {[%emt 0:00:00]} Qc5 {[%emt 0:00:00]} 26. Qe2 {[%emt 0:00:00]} Rbe8 {[%emt 0:06:30]} 27. Qf2 {[%emt 0:00:00]} Qxf2 {[%emt 0:00:00]} 28. Rxf2 {[%emt 0:00:00]} Bxd5 {[%emt 0:00:00]} 29. Rxd5 {[%emt 0:00:00]} Be3 {[%emt 0:00:00]} 30. Re2 {[%emt 0:00:00]} Bc5 {[%emt 0:00:00]} 31. g3 {[%emt 0:00:00]} f5 {[%emt 0:00:00]} 32. Kg2 {[%emt 0:00:00]} h5 {[%emt 0:00:00]} 33. Rd1 {[%emt 0:00:00]} Rf6 {[%emt 0:00:00]} 34. Rf1 {[%emt 0:00:00]} Ref8 {[%emt 0:00:00]} 35. f4 {[%emt 0:00:00]} fxe4 {[%emt 0:00:00]} 36. Rxe4 {[%emt 0:00:00]} g5 {[%emt 0:00:00]} 37. Be2 {[%emt 0:08:00]} Rf5 {[%emt 0:00:00]} 38. Bxh5 {[%emt 0:00:00]} gxf4 {[%emt 0:00:00]} 39. g4 {[%emt 0:00:00]} d5 {[%emt 0:00:00]} 40. gxf5 {[%emt 0:00:00]} dxe4 {[%emt 0:00:00]} 41. Bg6 {[%emt 0:03:38]} Kg7 {[%emt 0:32:17]} 42. Rd1 {[%emt 0:03:48]} Be3 {[%emt 0:05:43]} 43. h4 {[%emt 0:02:40]} f3+ {[%emt 0:00:00]} 44. Kg3 {[%emt 0:00:54]} Bf4+ {[%emt 0:00:00]} 45. Kf2 {[%emt 0:02:26]} Kf6 {[%emt 0:00:00]} 46. Rd7 {[%emt 0:00:00]} Bc1 {[%emt 0:02:00]} 47. Rc7 {[%emt 0:00:00]} Bb2 {[%emt 0:00:00]} 48. Ke3 {[%emt 0:00:00]} Bd4+ {[%emt 0:00:00]} 49. Kxe4 {[%emt 0:00:00]} f2 {[%emt 0:00:00]} 50. Rc1 {[%emt 0:00:00]} Rc8 {[%emt 0:00:00]} 51. Rf1 {[%emt 0:00:00]} Rc3 {[%emt 0:00:00]} 52. Kd5 {[%emt 0:00:00]} Be3 {[%emt 0:00:00]} 53. Be8 {[%emt 0:00:00]} Kxf5 {[%emt 0:00:00]} 54. Bb5 {[%emt 0:00:00]} Kg4 {[%emt 0:00:00]} 55. Kxe5 {[%emt 0:00:00]} Kxh4 {[%emt 0:00:00]} 56. Ke4 {[%emt 0:00:00]} Kg3 {[%emt 0:00:00]} 57. Rb1 {[%emt 0:26:34]} Bc5 {[%emt 0:00:32]} 58. Kd5 {[%emt 0:00:00]} Bb4 {[%emt 0:00:33]} 59. Kd4 {[%emt 0:00:00]} Rc7 {[%emt 0:00:33]} 60. Rf1 {[%emt 0:00:00]} Re7 {[%emt 0:00:20]} 61. Rh1 {[%emt 0:00:00]} Re1 {[%emt 0:01:28]} 62. Rh7 {[%emt 0:00:00]} f1=Q {[%emt 0:00:26]} 63. Rg7+ {[%emt 0:00:00]} Kf2 {[%emt 0:00:34]} 64. Rf7+ {[%emt 0:00:00]} Kg1 {[%emt 0:00:02]} 65. Bxf1 {[%emt 0:00:00]} Rxf1 {[%emt 0:00:03]} 66. Rg7+ {[%emt 0:00:00]} Kf2 {[%emt 0:00:19]} 67. Rf7+ {[%emt 0:00:00]} Ke2 {[%emt 0:00:05]} 68. Rh7 {[%emt 0:00:00]} Rf4+ {[%emt 0:00:28]} 69. Kd5 {[%emt 0:00:00]} Rf3 {[%emt 0:00:03]} 70. Rh2+ {[%emt 0:00:00]} Kd3 {[%emt 0:00:05]} 71. Kc6 {[%emt 0:00:00]} Kc3 {[%emt 0:00:09]} 72. Kb5 {[%emt 0:00:00]} Rf5+ {[%emt 0:00:09]} 73. Kc6 {[%emt 0:00:00]} Kxb3 {[%emt 0:00:02]} 74. Rh3+ {[%emt 0:00:00]} Kxa4 {[%emt 0:00:39]} 75. Rg3 {[%emt 0:00:00]} Rc5+ {[%emt 0:00:02]} 76. Kb6 {[%emt 0:00:00]} Rc3 {[%emt 0:00:01]} 77. Rg4 {[%emt 0:00:00]} Kb3 {[%emt 0:00:14]} 78. Kb5 {[%emt 0:00:00]} Rc5+ {[%emt 0:00:01]} 79. Kb6 {[%emt 0:00:00]} a4 {[%emt 0:00:03]} 80. Rg3+ {[%emt 0:00:00]} Rc3 {[%emt 0:00:04]} 0-1

[Event "Bangabandhu Premier Div League 2023-24"]
[Site "Dhaka"]
[Date "2024.02.11"]
[Round "11.1"]
[White "Mohammad Minhaz Uddin"]
[Black "Mohammad Nubairshah Shaikh"]
[Result "0-1"]
[ECO "B48"]
[WhiteElo "2224"]
[BlackElo "2428"]
[Annotator "TA"]
[PlyCount "78"]
[EventDate "2024.02.01"]
[EventCountry "BAN"]
[SourceTitle "playchess.com"]
[Source "ChessBase"]
[SourceQuality "1"]
[TimeControl "40/5400+30:1800+30"]

{[%evp 14,78,20,28,43,32,28,16,21,-27,-27,-26,-37,-25,-23,-27,-31,-44,-15,-95,-100,-93,-93,-98,-93,-135,-137,-148,-138,-162,-163,-172,-168,-311,-287,-284,-287,-306,-276,-300,-269,-372,-353,-352,-336,-300,-122,-127,-53,-67,70,127,127,-45,-39,-51,-170,-140,-196,-291,-285,-1658,-1451,-5106,-5073,-2032,-1671]} 1. e4 c5 {[%emt 0:14:29]} 2. Nf3 {[%emt 0:01:56]} e6 {[%emt 0:01:20]} 3. d4 {[%emt 0:00:04]} cxd4 {[%emt 0:00:06]} 4. Nxd4 {[%emt 0:00:07]} Nc6 {[%emt 0:00:02]} 5. Nc3 {[%emt 0:00:25]} Qc7 {[%emt 0:00:02]} 6. Be3 {[%emt 0:05:38]} a6 {[%emt 0:00:03]} 7. a3 {[%emt 0:00:28]} b5 {[%emt 0:00:13]} 8. Nxc6 {[%emt 0:04:09]} Qxc6 {[%emt 0:00:02]} 9. Bd3 {[%emt 0:01:11]} Bb7 {[%emt 0:00:03]} 10. Qe2 {[%emt 0:01:43]} Nf6 {[%emt 0:06:47] The position is equal.} 11. f4 {[%emt 0:07:25]} (11. O-O {feels stronger.}) 11... b4 $11 {[%emt 0:03:51]} 12. axb4 {[%emt 0:00:05]} Bxb4 {[%emt 1:09:32]} 13. Bd2 {[%emt 1:13:49]} Bxc3 {[%emt 0:00:30]} 14. Bxc3 {[%emt 0:00:30]} Nxe4 {[%emt 0:00:30]} 15. Bd4 {[%emt 0:00:30][%cal Oe2g4]} Nc5 {[%emt 0:00:30]} 16. O-O {[%emt 0:00:30]} (16. Qg4 $11) 16... Nxd3 $17 {[%emt 0:00:00]} 17. cxd3 {[%emt 0:00:00][%cal Oe2g4]} O-O {[%emt 0:01:00]} 18. Ra5 {[%emt 0:00:00]} f6 {[%emt 0:00:00]} 19. Rh5 {[%emt 0:01:30] [#]} a5 $1 {[%emt 0:01:00]} 20. Rh3 {[%emt 0:00:30]} a4 {[%emt 0:00:30]} 21. Rg3 {[%emt 0:00:00]} Qd5 {[%emt 0:00:00]} 22. Bc3 {[%emt 0:01:00]} a3 {[%emt 0:01:00]} 23. b4 {[%emt 0:00:30]} (23. bxa3 $142 Rxa3 24. Bb2) 23... Rac8 {[%emt 0:00:00]} 24. Ba1 {[%emt 0:00:30]} Qf5 {[%emt 0:01:00] White is weak on the light squares} 25. h4 {[%emt 0:00:30]} h5 {[%emt 0:00:00]} 26. Qa2 {[%emt 0:00:00]} Ra8 {[%emt 0:00:00]} 27. Bd4 {[%emt 0:01:00]} Rfc8 {[%emt 0:01:30]} 28. Ba1 {[%emt 0:00:30]} Kf7 {[%emt 0:00:00]} 29. Qf2 {[%emt 0:00:30]} Ra6 {[%emt 0:00:00]} (29... a2 30. Qd4 Rd8 31. b5 $19) (29... Bd5 $19 {has better winning chances.} 30. Qe2 a2) 30. Qd4 {[%emt 0:00:00] [#]} Bd5 {[%emt 0:01:30] Active counter play!} (30... d6 $1 $17 {Threatens to win with ...Rc2.} 31. b5 Raa8 (31... Qxb5 32. Rxg7+ Ke8 33. Qxf6 Qb6+ 34. Kh2)) 31. Rg5 $15 {[%emt 0:00:00]} fxg5 {[%emt 0:00:00]} ({Black should try} 31... Qh7 $1 $15 32. f5 Rf8 (32... fxg5 33. fxe6+ Ke7 34. exd7 $11) 33. fxe6+ Bxe6 (33... dxe6 34. b5 $11)) 32. Qxg7+ $14 {[%emt 0:00:00]} (32. fxg5 $2 Qxf1+ 33. Kxf1 Rc1+ 34. Kf2 Rxa1 35. Qxa1 a2 $19) 32... Ke8 {[%emt 0:01:00]} 33. Bf6 $2 {[%emt 0:00:00] [#]} ({White has to play} 33. fxg5 $16 {Intending Bf6 and mate.} Qxf1+ (33... Qxd3 34. Qf8#) 34. Kxf1 Rc1+ 35. Kf2 Rxa1 36. Qxa1) 33... Qxf6 $1 $15 {[%emt 0:00:00]} 34. Qxf6 {[%emt 0:00:00]} Rc2 $40 {[%emt 0:01:00][%mdl 128] Black is out for blood. Dancing on a razor blade.} 35. Qg6+ {[%emt 0:01:29]} (35. fxg5 $2 Rxg2+ 36. Kh1 Rf2+ (36... Rxg5+ $2 37. Kh2 $18) 37. Kg1 Rxf6 $19) 35... Kd8 {[%emt 0:00:00]} 36. Qxg5+ {[%emt 0:00:02]} (36. Qf6+ $142 Kc7 37. Ra1) 36... Kc8 {[%emt 0:00:00]} 37. Qg8+ {[%emt 0:01:12]} (37. Qxh5 $2 {is the wrong capture.} Rxg2+ 38. Kh1 Rg5+ $19) (37. f5 Rxg2+ 38. Qxg2 Bxg2 39. f6) 37... Kb7 $19 {[%emt 0:00:00] Black is clearly winning.} 38. b5 {[%emt 0:00:03]} Ra8 {[%emt 0:00:00]} (38... Rxg2+ $2 {loses.} 39. Qxg2 Ra5 40. Qg7 $18) 39. Qg7 {[%emt 0:01:31]} Rxg2+ {[%emt 0:00:00] Weighted Error Value: White=0.51/Black=0.19 (very precise) .  Missed win:     	---       	Black=1      Mistake:       	White=6     	Black=2      Inaccurate:     	White=3     	Black=1      OK:         	White=7     	Black=11     Best:        	White=2     	Black=5      Brilliant:      	---       	Black=1} 0-1

[Event "Bangabandhu Premier Div League 2023-24"]
[Site "Dhaka"]
[Date "2024.02.11"]
[Round "11.1"]
[White "Shawket Bin, Osman Shaon"]
[Black "Swarnavo Choudhury"]
[Result "1-0"]
[ECO "D89"]
[WhiteElo "2030"]
[BlackElo "2056"]
[Annotator "NA RC"]
[PlyCount "113"]
[EventDate "2024.02.01"]
[EventCountry "BAN"]
[SourceTitle "playchess.com"]
[Source "ChessBase"]
[SourceQuality "1"]
[TimeControl "40/5400+30:1800+30"]

1. d4 {[%emt 0:00:30]} Nf6 {[%emt 0:00:30]} 2. c4 {[%emt 0:00:30]} g6 {[%emt 0:00:30]} 3. Nc3 {[%emt 0:00:30]} d5 {[%emt 0:00:30]} 4. cxd5 {[%emt 0:00:30]} Nxd5 {[%emt 0:00:30]} 5. e4 {[%emt 0:00:30]} Nxc3 {[%emt 0:00:30]} 6. bxc3 {[%emt 0:00:30]} Bg7 {[%emt 0:00:30]} 7. Bc4 {[%emt 0:00:30]} c5 {[%emt 0:00:30]} 8. Ne2 {[%emt 0:00:30]} O-O {[%emt 0:00:30]} 9. O-O {[%emt 0:00:30]} Nc6 {[%emt 0:00:30]} 10. Be3 {[%emt 0:00:30]} cxd4 {[%emt 0:00:30]} 11. cxd4 {[%emt 0:00:30]} Bg4 {[%emt 0:00:30]} 12. f3 {[%emt 0:04:23]} Na5 {[%emt 0:00:00]} 13. Bd3 {[%emt 0:01:25]} Be6 {[%emt 0:00:00]} 14. Qa4 {[%emt 0:01:34]} a6 {[%emt 0:05:38]} 15. d5 {[%emt 0:11:23]} b5 {[%emt 0:09:08]} 16. Qb4 {[%emt 0:00:43]} Bxa1 {[%emt 0:00:28]} 17. Rxa1 {[%emt 0:00:06]} Bd7 {[%emt 0:08:48]} 18. Rd1 {[%emt 0:18:32]} Nc4 {[%emt 0:04:21]} 19. Bxc4 {[%emt 0:08:45]} bxc4 {[%emt 0:00:24]} 20. d6 {[%emt 0:06:23]} e6 {[%emt 0:03:43]} 21. Qxc4 {[%emt 0:03:51]} Bb5 {[%emt 0:06:39]} 22. Qc2 {[%emt 0:00:19]} Rc8 {[%emt 0:01:46]} 23. Qb2 {[%emt 0:02:20]} Ba4 {[%emt 0:07:33]} 24. Rd2 {[%emt 0:05:36]} Rb8 {[%emt 0:02:27]} 25. Qa1 {[%emt 0:00:23]} f6 {[%emt 0:01:34]} 26. Nc3 {[%emt 0:02:31]} Bc6 {[%emt 0:00:22]} 27. Qf1 {[%emt 0:00:35]} Qd7 {[%emt 0:03:59]} 28. Qxa6 {[%emt 0:02:38]} Rfc8 {[%emt 0:01:10]} 29. Qd3 {[%emt 0:02:40]} Bb5 {[%emt 0:04:50]} 30. Nxb5 {[%emt 0:02:45]} Rxb5 {[%emt 0:00:11]} 31. a3 {[%emt 0:05:53]} Kg7 {[%emt 0:37:29]} 32. f4 {[%emt 0:01:53]} e5 {[%emt 0:00:00]} 33. h3 {[%emt 0:01:35]} Rc1+ {[%emt 0:00:00]} 34. Kh2 {[%emt 0:00:06]} Rc8 {[%emt 0:00:00]} 35. fxe5 {[%emt 0:00:22]} Rxe5 {[%emt 0:00:00]} 36. Bf4 {[%emt 0:00:45]} Rec5 {[%emt 0:00:00]} 37. Rb2 {[%emt 0:00:43]} g5 {[%emt 0:00:00]} 38. Bg3 {[%emt 0:00:31]} R8c6 {[%emt 0:00:00]} 39. Rd2 {[%emt 0:05:54]} Rc3 {[%emt 0:00:00]} 40. Qd5 {[%emt 0:00:19]} R3c5 {[%emt 0:00:00]} 41. Qd4 {[%emt 0:30:10]} Rc4 {[%emt 0:19:26]} 42. Qe3 {[%emt 0:00:07]} Rc3 {[%emt 0:02:25]} 43. Rd3 {[%emt 0:00:05]} Rxd3 {[%emt 0:02:46]} 44. Qxd3 {[%emt 0:11:45]} Rc8 {[%emt 0:04:29]} 45. e5 {[%emt 0:00:00]} f5 {[%emt 0:00:17]} 46. Qd5 {[%emt 0:00:00]} Re8 {[%emt 0:01:10]} 47. Bf2 {[%emt 0:00:00]} Re6 {[%emt 0:01:14]} 48. a4 {[%emt 0:00:00]} g4 {[%emt 0:00:25]} 49. a5 {[%emt 0:00:00]} f4 {[%emt 0:00:07]} 50. hxg4 {[%emt 0:00:00]} Rh6+ {[%emt 0:00:38]} 51. Kg1 {[%emt 0:00:00]} Qa4 {[%emt 0:00:32]} 52. Qd2 {[%emt 0:00:00]} Qa1+ {[%emt 0:01:10]} 53. Qe1 {[%emt 0:00:00]} Qa4 {[%emt 0:00:15]} 54. e6 {[%emt 0:00:00]} f3 {[%emt 0:00:04]} 55. Qe5+ {[%emt 0:00:00]} Kg6 {[%emt 0:00:13]} 56. Qf5+ {[%emt 0:00:00]} Kg7 {[%emt 0:00:02]} 57. Qf7+ {[%emt 0:00:00]} 1-0

[Event "Bangabandhu Premier Div League 2023-24"]
[Site "Dhaka"]
[Date "2024.02.11"]
[Round "11.2"]
[White "Mayank Chakraborty"]
[Black "Ahmed, Sheikh Nasir"]
[Result "1-0"]
[ECO "E49"]
[WhiteElo "2409"]
[BlackElo "2182"]
[Annotator "TA"]
[PlyCount "47"]
[EventDate "2024.02.01"]
[EventCountry "BAN"]
[SourceTitle "playchess.com"]
[Source "ChessBase"]
[SourceQuality "1"]
[TimeControl "40/5400+30:1800+30"]

{[%evp 21,47,12,41,14,38,45,43,34,63,67,163,143,145,170,168,170,169,163,179,119,266,266,275,271,557,540,582,558]} 1. d4 Nf6 2. c4 e6 3. Nc3 Bb4 4. f3 O-O 5. a3 Bxc3+ {[%emt 0:02:30]} 6. bxc3 {[%emt 1:33:30]} d5 {[%emt 0:05:39]} 7. cxd5 {[%emt 0:00:00]} exd5 {[%emt 0:00:12]} 8. e3 {[%emt 0:00:00]} c5 {[%emt 0:01:32]} 9. Bd3 {[%emt 0:00:00]} b6 {[%emt 0:13:06]} 10. Ne2 {[%emt 0:00:00]} Bb7 {[%emt 0:05:27]} 11. O-O {[%emt 0:00:00]} Re8 {[%emt 0:00:34]} 12. Ra2 {[%emt 0:00:00]} Nbd7 {[%emt 0:05:57]} 13. Ng3 {[%emt 0:00:00]} Nf8 {[%emt 1:02:03]} 14. Re2 {[%emt 0:04:00] White is slightly better.} a5 {[%emt 0:00:30]} 15. Kh1 {[%emt 0:00:00] White is more active.} Ba6 {[%emt 0:00:30]} ({Better is} 15... Ne6 $14) 16. Bxa6 $18 {[%emt 0:00:00]} Rxa6 {[%emt 0:00:30]} 17. e4 {[%emt 0:01:30]} dxe4 18. fxe4 {Threatens to win with Bg5.} cxd4 19. cxd4 {And now Bg5 would win.} b5 20. Ref2 (20. Qd3 $18) 20... Rd6 {[#] A mistake that costs the game.} (20... Nxe4 $16 21. Nxe4 (21. Rxf7 Nf6 $14) 21... Rxe4) 21. Bg5 $1 Rxd4 {[#]} 22. Qa1 Re6 (22... Rexe4 {was necessary.} 23. Nxe4 (23. Bxf6 gxf6 24. Nxe4 Rxe4 $18) 23... Rxe4 24. Bxf6 gxf6 25. Rxf6 (25. Qxf6 Qxf6 26. Rxf6 Re7 $18) 25... Re7) 23. Nf5 Rdd6 24. e5 {Weighted Error Value: White=0.07 (flawless) /Black=0.55.  Mistake:       	White=1     	Black=3      Inaccurate:     	---       	Black=1      OK:         	White=7     	Black=3      Strong:       	White=1     	---} 1-0